Cogmind - Beta 13 @@@ ROGUE MODE // 2024.04.15 @ 19:30:37 Player: Cheeriohz Result: Destroyed by OL-QR9(R) with Subdweller Laser Performance ------------- Evolutions (0) 0 Regions Visited (2) 400 Robots Destroyed (23) 115 Value Destroyed (532) 532 Prototype IDs (0) 0 Alien Tech Used (0) 0 Bonus (0) 0 TOTAL SCORE: 1047 Bonus ------- None Cogmind --------- Core Integrity 0/250 Matter 77/300 Energy 66/100 System Corruption 0% Temperature Cool (6) Movement Core (800) Ox15 Location -10/Subcaves Parts ------- > --- POWER (1) -------- (None) > --- PROPULSION (2) --- Subdweller Monowheel > --- UTILITY (2) ------ High-capacity Storage Unit Visual Processing Unit > --- WEAPON (2) ------- Subdweller Laser Battle Rifle > --- INVENTORY (20) --- Ion Engine Light Treads Light Treads Light Treads Small Storage Unit Large Matter Pod (150) High-capacity Matter Pod (90) Power Shielding Medium Laser Medium Laser Subdweller Shrapnel Launcher Scrap Shield Fragment (48) Scrap Shield Fragment (45) Peak State ------------ > --- POWER ------------ Ion Engine > --- PROPULSION ------- Compact Wheel Subdweller Monowheel > --- UTILITY ---------- High-capacity Storage Unit Visual Processing Unit > --- WEAPON ----------- Subdweller Laser Battle Rifle > --- INVENTORY -------- Ion Engine Light Treads Light Treads Light Treads Small Storage Unit Large Matter Pod High-capacity Matter Pod Power Shielding Medium Laser Medium Laser Scrap Shield Fragment Scrap Shield Fragment [Rating: 12] Favorites ----------- Power Ion Engine Engine Ion Engine Propulsion Compact Wheel Leg Aluminum Leg Wheel Compact Wheel Utility Visual Processing Unit Storage High-capacity Storage Unit Processor Visual Processing Unit Weapon Medium Laser Energy Gun Medium Laser Ballistic Gun Battle Rifle Ballistic Cannon Light Cannon Launcher Subdweller Shrapnel Launcher Build | -11 -10 -10 ------- Run | Yrd Mat Sub Slots Evolved . | . . . Power . | . . . Propulsion . | . . . Utility . | . . . Weapon . | . . . Parts Attached 20 | . 11 9 Power 2 | . 1 1 Engine 2 | . 1 1 Core . | . . . Reactor . | . . . Propulsion 4 | . 3 1 Treads . | . . . Leg . | . . . Wheel 4 | . 3 1 Hover . | . . . Flight . | . . . Utility 2 | . 2 . Device . | . . . Storage 1 | . 1 . Processor 1 | . 1 . Hackware . | . . . Protection . | . . . Artifact . | . . . Weapon 12 | . 5 7 Energy Gun 6 | . 3 3 Energy Cannon . | . . . Ballistic Gun 2 | . . 2 Ballistic Cannon 2 | . 2 . Launcher 2 | . . 2 Special Weapon . | . . . Impact Weapon . | . . . Slashing Weapon . | . . . Piercing Weapon . | . . . Special Melee Weapon . | . . . Unidentified Prototypes . | . . . Parts Lost 8 | . 3 5 Power 2 | . . 2 Propulsion 3 | . 1 2 Utility . | . . . Weapon 3 | . 2 1 Highest Loss Streak 2 | . 1 2 To Critical Strikes . | . . . Average Slot Usage (%) 95 | . 91 98 Engine 13 | . 14 13 Leg 4 | . 7 . Wheel 23 | . 19 27 Storage 14 | . 14 14 Processor 11 | . 9 14 Energy Gun 16 | . 23 7 Ballistic Gun 4 | . . 8 Ballistic Cannon 4 | . 2 7 Launcher 2 | . . 4 Naked Turns . | . . . Heaviest Build 57 | 14 50 57 Greatest Support 36 | 20 26 36 Greatest Overweight (x) 3 | . 3 3 Average Overweight (x) . | . . 1 Largest Inventory Capacity 20 | . 20 20 Average Capacity 14 | . 10 20 Most Carried 15 | . 10 15 Average Carried 9 | . 7 12 Final Capacity 20 | 8 20 20 Final Carried 13 | 6 10 13 Class Distribution -------------------- 100% | Mutant Dominant Class ---------------- Mutant | -10/Materials Mutant | -10/Subcaves Resources | -11 -10 -10 ----------- Run | Yrd Mat Sub Matter Collected 676 | 200 356 120 Remotely . | . . . Salvage Created 562 | . 482 80 Parts 40 | . 28 12 Haulers Intercepted 1 | . 1 . Recyclers Shooed . | . . . Parts Field Recycled . | . . . Retrieved Matter . | . . . Parts Self-Destructed 7 | . . 7 Prevented . | . . . Kills | -11 -10 -10 ------- Run | Yrd Mat Sub Combat Hostiles Destroyed 16 | . 9 7 Guns 7 | . 6 1 Cannons 2 | . 1 1 AOE 5 | . . 5 Classes Destroyed 8 | . 6 2 Builder 2 | . 2 . Hauler 1 | . 1 . Mechanic 1 | . 1 . Turret 2 | . . 2 Watcher 1 | . 1 . Swarmer 6 | . 2 4 Grunt 7 | . 7 . Subdweller 3 | . . 3 Best Kill Streak 6 | . 4 6 Combat Bots Only 4 | . 3 4 Max Kills in Single Turn 2 | . 2 2 Gunslinging . | . . . Exploded 2 | . . 2 Melee . | . . . Uniques/NPCs Destroyed . | . . . Combat | -11 -10 -10 -------- Run | Yrd Mat Sub Hostile Shots Fired 92 | . 58 34 Missed 32 | . 19 13 Damage Taken 1008 | . 415 593 Core 252 | . 95 157 Absorbed by Shields . | . . . Core Remaining (%) 100 | 100 . . Volleys Fired 78 | . 39 39 Largest 2 | . 2 2 Hottest 100 | . 100 85 Shots Fired 111 | . 66 45 Gun 90 | . 62 28 Cannon 9 | . 4 5 Launcher 12 | . . 12 Special . | . . . Kinetic 27 | . 4 23 Thermal 46 | . 24 22 Explosive . | . . . Electromagnetic 38 | . 38 . Robot Hit Streak 10 | . 10 7 Robot Miss Streak 2 | . 2 2 Penetration Max . | . . . Secondary Targets . | . . . Shots Hit Robots 54 | . 43 11 Core Hits 36 | . 21 15 Critical Kills . | . . . Critical Parts Destroyed . | . . . Critical Strikes 3 | . 3 . Burn 2 | . 2 . Blast 1 | . 1 . Melee Attacks . | . . . Impact . | . . . Slashing . | . . . Piercing . | . . . Sneak Attacks . | . . . Combat Hostiles . | . . . Follow-up Attacks . | . . . Damage Inflicted 1651 | . 714 937 Guns 616 | . 551 65 Cannons 114 | . 61 53 Explosions 921 | . 102 819 Melee . | . . . Ramming . | . . . Kinetic 973 | . 61 912 Thermal 367 | . 342 25 Explosive . | . . . Electromagnetic 311 | . 311 . Impact . | . . . Slashing . | . . . Piercing . | . . . Highest Corruption . | . . . Average Corruption . | . . . Corruption Purged . | . . . Corruption Blocked . | . . . Overload Shots . | . . . Overflow Damage 43 | . . 43 Projectiles . | . . . Explosions 43 | . . 43 Melee . | . . . Knockbacks 1 | . . 1 Impact . | . . . Kinetic 1 | . . 1 Secondary . | . . . Self-Inflicted Damage 127 | . . 127 Shots 3 | . . 3 Rammed . | . . . Targets Rammed . | . . . Kicked . | . . . Crushed . | . . . Highest Temperature 368 | . 368 4 Average Temperature 101 | . 102 4 Received Heat Transfer 312 | . 195 117 Effects 4 | . 4 . Shutdowns 1 | . 1 . Energy Bleed 2 | . 2 . Interference 1 | . 1 . Siege Activations . | . . . Robots Corrupted 1 | . 1 . Combat Hostiles 1 | . 1 . Parts Fried 1 | . 1 . Impact Corruptions . | . . . Robots Melted 1 | . 1 . Combat Hostiles 1 | . 1 . Parts Melted 4 | . 4 . Heat Transferred 1025 | . 951 74 Parts Sabotaged . | . . . Parts Stolen . | . . . Parts Stripped . | . . . Power Chain Reactions 1 | . 1 . Alert | -11 -10 -10 ------- Run | Yrd Mat Sub Peak Influence 199 | . 199 . Initial . | . . . Average 74 | . 74 . Maximum Alert Level . | . . . Low Security (%) 100 | . 100 . Level 1 . | . . . Level 2 . | . . . Level 3 . | . . . Level 4 . | . . . Level 5 . | . . . High Security . | . . . Max Security . | . . . Squads Dispatched 1 | . 1 . Investigation 1 | . 1 . Extermination . | . . . Reinforcement . | . . . Assault . | . . . Garrison . | . . . Intercept . | . . . Searches Triggered . | . . . Construction Impeded . | . . . Haulers Reinforced . | . . . Active Scanning Responses . | . . . Cargo Convoy Interrupts . | . . . Stealth | -11 -10 -10 --------- Run | Yrd Mat Sub Distress Signals . | . . . Communications Jammed . | . . . Distress Signals . | . . . Times Spotted 27 | . 13 14 Peak Tracking Total 4 | . 3 4 Tactical Retreats 2 | . 1 1 Traps | -11 -10 -10 ------- Run | Yrd Mat Sub Traps Triggered 4 | . 2 2 Indirectly . | . . . Trap Hack Attempts . | . . . Triggered . | . . . Disarmed . | . . . Reprogrammed . | . . . Reused 1 | . . 1 Traps Extracted . | . . . Installed 1 | . . 1 Triggered . | . . . Most Traps Carried 2 | . . 2 Machines | -11 -10 -10 ---------- Run | Yrd Mat Sub Machines Disabled 4 | . . 4 Max in Single Turn 3 | . . 3 Machines Repaired . | . . . Machines Dismantled . | . . . Machines Sabotaged . | . . . Overloaded Fab Kills . | . . . Hacking | -11 -10 -10 --------- Run | Yrd Mat Sub Machines Accessed 5 | . 4 1 Terminals 4 | . 4 . Fabricators . | . . . Repair Stations . | . . . Recycling Units . | . . . Scanalyzers . | . . . Garrison Access . | . . . Total Hacks 9 | . 7 2 Successful 3 | . 1 2 Failed 5 | . 5 . Catastrophic . | . . . Database Lockouts 1 | . 1 . Manual 7 | . 7 . Terminals 7 | . 7 . Fabricators . | . . . Repair Stations . | . . . Recycling Units . | . . . Scanalyzers . | . . . Garrison Access . | . . . Terminal Hacks 3 | . 1 2 Record 2 | . . 2 Robot Analysis 1 | . 1 . Fabricator Hacks . | . . . Repair Station Hacks . | . . . Recycling Unit Hacks . | . . . Scanalyzer . | . . . Garrison Access Hacks . | . . . Unauthorized Hacks . | . . . Terminals . | . . . Fabricators . | . . . Repair Stations . | . . . Recycling Units . | . . . Scanalyzers . | . . . Garrison Access . | . . . Data Cores Recovered . | . . . Used . | . . . Hacking Detections 4 | . 4 . Full Trace Events . | . . . Feedback Events . | . . . Feedback Blocked . | . . . Robot Schematics Acquired . | . . . Robots Built . | . . . Authchips . | . . . Time . | . . . Total Robot Build Rating . | . . . Part Schematics Acquired . | . . . Parts Built . | . . . Authchips . | . . . Time . | . . . Total Part Build Rating . | . . . Parts Repaired . | . . . Time . | . . . Parts Recycled . | . . . Recycled Matter . | . . . Retrieved Matter . | . . . Retrieved Components . | . . . Parts Scanalyzed . | . . . Part Schematics Acquired . | . . . Parts Damaged . | . . . Bothacking | -11 -10 -10 ------------ Run | Yrd Mat Sub Used RIF Installer . | . . . Robots Hacked . | . . . Non-combat . | . . . Combat . | . . . Robot Hacks Applied . | . . . Relay Couplers Released . | . . . Fabnet Peak Effective % . | . . . Robots Rewired . | . . . Allies Hacked . | . . . Hacks Repelled . | . . . Allies | -11 -10 -10 -------- Run | Yrd Mat Sub Total Allies . | . . . Largest Group . | . . . Highest-Rated Group . | . . . Highest-Rated Ally . | . . . Total Orders . | . . . Ally Attacks . | . . . Total Damage . | . . . Kills . | . . . Allies Corrupted . | . . . Allies Melted . | . . . Intel | -11 -10 -10 ------- Run | Yrd Mat Sub Robot Analysis Total 1 | . 1 . Derelict Logs Recovered . | . . . Drone Launches . | . . . Drone Recoveries . | . . . Exploration | -11 -10 -10 ------------- Run | Yrd Mat Sub Turns Passed 1122 | . 591 531 Spaces Moved 773 | 1 424 348 Core . | . . . Treads . | . . . Legs 74 | 1 73 . Wheels 699 | . 351 348 Hover . | . . . Flight . | . . . Fastest Speed 90 | 120 90 105 Average Speed 107 | 120 98 119 Slowest Speed 145 | 120 145 145 Overloaded Moves . | . . . Propulsion Burnouts . | . . . Robots Hopped . | . . . Cave-ins Triggered . | . . . Exploration Rate (%) 29 | 2 57 28 Regions Visited 2 Branch Regions 1 Pre-discovered Areas . | . . . Known Exits Taken . | . . . Unknown Exits Taken 2 | 1 1 . Scrap Searched 2 | . . 2 Spaces Dug 20 | . . 20 Terrain Destroyed 146 | . 3 143 Melee . | . . . Projectile 1 | . . 1 AOE 145 | . 3 142 Terrain Rammed . | . . . Walls Destroyed . | . . . Machines Disabled . | . . . Actions | -11 -10 -10 --------- Run | Yrd Mat Sub Total 946 | . 531 415 Wait 56 | . 49 7 Move 771 | . 423 348 Hop . | . . . Pick Up 11 | . 5 6 Fast Attach 7 | . 4 3 Attach 5 | . 3 2 Detach 4 | . 2 2 Swap 8 | . 4 4 Drop 5 | . 2 3 Fire 78 | . 39 39 Melee . | . . . Ram . | . . . Kick . | . . . Crush . | . . . Escape Stasis . | . . . Rewire . | . . . Trap 1 | . . 1 Miscellaneous . | . . . Route ------- -11/Scrapyard -10/Materials (discovered 4 exits: [*Mat x2] / [*Min] / *Sub) -10/Subcaves (discovered 2 exits: [*Mat] / [*Rec]) History --------- Turn | Location | Event 1 | -11/Scrapyard | Discovered new exit (range 0) 1 | -11/Scrapyard | Entered Materials 232 | -10/Materials | Discovered new exit (range 10) 293 | -10/Materials | Discovered new exit (range 8) 324 | -10/Materials | Build established: Mutant 396 | -10/Materials | Discovered new exit (range 11) 471 | -10/Materials | Central database locked down 588 | -10/Materials | Discovered new exit (range 5) 592 | -10/Materials | Entered Subcaves 594 | -10/Subcaves | Shifting Twisted Machinery released Piercing Trap 609 | -10/Subcaves | Shifting Twisted Machinery released Sub. Shrapnel Launcher 681 | -10/Subcaves | Discovered new exit (range 13) 731 | -10/Subcaves | Visited Clippyterm 829 | -10/Subcaves | Core integrity fell below 50% 916 | -10/Subcaves | Discovered new exit (range 5) 1064 | -10/Subcaves | Shifting Twisted Machinery released Sub. Shrapnel Launcher 1102 | -10/Subcaves | Ambushed by Subdwellers from Twisted Machinery 1119 | -10/Subcaves | Core integrity fell below 20% 1123 | -10/Subcaves | Destroyed by OL-QR9(R) with Subdweller Laser Last Messages --------------- 00874_ DE-UVK(R) knocked back. 00875_ Lgt. Cannon destroyed. 00880_ DE-UVK(R) destroyed. 00884_ Acquired 28 matter. 00890_ Acquired Sub. Monowheel. 00891_ Acquired 27 matter. 00915_ HU-GA1(u) builds Twisted Machinery. 00916_ EXIT=FOUND 00918_ HU-GA1(u) builds Twisted Machinery. 00948_ Acquired Sub. Laser. 00991_ HU-GA1(u) builds Twisted Machinery. 01002_ Sub. Monowheel shoots sparks and powers down. 01010_ HU-GA1(u) builds Twisted Machinery. Sub. Shrapnel Launcher falls loose from the Twisted Machinery. 01093_ Acquired Sub. Shrapnel Launcher. 01102_ OL-QR9(R) emerges from the Twisted Machinery. 01118_ 6Z-B1D(R) destroyed. 01118_ Ion Engine destroyed. 01118_ Destroyed Ion Engine. 01119_ Com. Wheel destroyed. Map ----- +----------------------------------------------------+ | ?????????????????????????????????????????????????? | | ?????????????????????????????????????????????????? | | ?????????????????????????????????????????????????? | | ?????????????????????????????????????????????????? | | ?????????????????????????????????????????????????? | | ?????????????????????????????????????????????????? | | ?????????????????????????????????????????????????? | | ?????????????????????????????????????????????????? | | ?????????????????????????????????????????????????? | | ?????????????????????????????????????????????????? | | ?????????????????????????????????????????????????? | | ?????????????????????????????????????????????????? | | ????????????? ??????????????????????????????????? | | ????????????? ?????????????????????????????????? | | ????????????? ????????????????????????????????? | | ?????????????? #??##???????????????????????????? | | ??????????????? ###;##?????????????????????????? | | ????????????????# ##???????????????????????? | | ?????????????????# #???????????????????????? | | ?????????????????# ##??????????????????????? | | ?????????????????# #????#?????????????????? | | ?????????????????# #??? ##????????????????? | | ?????????????????# ##?? #????????????????? | | ??????????????????# ;## ##???????????????? | | ???????????????????# ;; "#???????????????? | | ????????????????????# @ "#???????????????? | | ????????????????????# "#???????????????? | | ??????????????####### #???????????????? | | ?????????????## !%R;; ""#???????????????? | | ?????????????# ! ##" ##???????????????? | | ?????????????## #" ###??????????????? | | ??????????????######; " ""??????????????? | | ?????????????????#### ""?????????????? | | ????????????????## ; ""?????????????? | | ????????????????# ;;; #?????????????? | | ???????????????##" #; ; ; #?????????????? | | ??????????????##"" ### ##;; ;;## #?????????????? | | ?????????????##" ##?##??""" ##? ?????????????? | | ?????????????# "#??????""#"##??????????????????? | | ?????????????## ##??????"#"# ???????????????????? | | ??????????????#" #????????? ???????????????????? | | ?????????????##" ##??????? #?????????????????????? | | ?????????????# ""#?##??? ##?????????????????????? | | ?????????????##" "## ### #?????????????????????? | | ??????????????# # #???##????????????????? | | ??????????????#" ##???????????????? | | ??????????????## ## # #? #???????????????? | | ???????????????### ##?????# ##??????????????? | | ????????????????# #?#### ##?????????????? | | ????????????????## ## #?????????????? | +----------------------------------------------------+ Best States ------------- Heat Dissipation 25 Energy Generation 10 Energy Capacity 250 Matter Stores 300 Matter Capacity 300 Sight Range 18 Terrain Scan Density 10 Evasion (%) 55 Item Schematics ----------------- None Robot Schematics ------------------ None Fabricated ------------ Nothing Alien Tech Used ----------------- None Achievements -------------- None Challenges ------------ None Game ------ Seed AerolevBehemothNanosword Manual? 0 Play Time 00:13:46 Cumulative 130.3 hours Start 2024.04.15 @ 19:21:11 End 2024.04.15 @ 19:30:37 Sessions 1 Manual Loads 0 Difficulty Rogue Special Mode None Game No. 118 Rogue 118 Adventurer 0 Explorer 0 Win Type - Total 3 Types 2/0/0/1/0/0/0/0/0 Lore% 53 Gallery% 71 Achievement% 54 Wizard Run 0 Options --------- Layout 2 ASCII 0 Keyboard 1 Movement Numpad Keybinds 0 Fullscreen 1 Font 32/SmallcapsGlow Map View 77x44 Zoom Use 0% Tactical HUD 1 Map Filters NONE Filters NONE Steam 1 RUN: 22003f68-fb49-4553-a33c-0353c2cf73d8